bitfinex-derivatives/quotes_ETHF0:USTF0_20251203
["timestamp","ask_amount","ask_price","bid_price","bid_amount"]
[1764780084531,0.7678,3099.6,3099.5,1.92554717]
[1764780084833,1.49813715,3099.9,3099.8,0.7374]
[1764780085033,0.76593715,3099.9,3099.8,1.5133]
[1764780085232,0.00483715,3099.9,3099.8,1.5133]
[1764780088532,0.76593715,3099.9,3099.8,1.5133]
[1764780088733,1.49813715,3099.9,3099.8,1.5133]
[1764780088926,0.00483715,3099.9,3099.8,1.5133]
[1764780090338,1.4933,3099.6,3099.5,1.18474717]
[1764780090537,1.4933,3099.6,3099.5,0.44734717]
[1764780090933,1.4933,3099.6,3099.5,0.00364717]
[1764780092033,3.94,3099.6,3099.4,0.00483715]
[1764780092234,1.4933,3099.5,3099.4,0.00483715]
[1764780093134,1.4933,3099.5,3099.4,0.00797704]
[1764780093641,1.4933,3099.5,3099.4,0.74537704]
[1764780093829,1.4933,3099.5,3099.4,0.00797704]
[1764780094134,1.4933,3099.5,3099.4,0.73627704]
[1764780094540,1.4933,3099.5,3099.4,0.00797704]
[1764780095636,1.5533,3099.1,3099.0,0.0622]
[1764780095842,1.5533,3098.6,3098.5,1.172]
[1764780096337,1.5533,3098.6,3098.1,3.2078]
[1764780096537,1.5533,3098.6,3098.1,3.21109639]
[1764780096940,0.7839,3098.6,3098.5,1.9821]
[1764780097547,1.5533,3098.6,3098.5,1.1862]
[1764780098047,1.5533,3098.6,3098.5,0.7283]
[1764780098246,0.7839,3098.6,3098.5,1.9821]
[1764780098446,41.0691,3099.0,3098.1,1.52749639]
[1764780098447,0.7839,3098.2,3098.1,1.52749639]
[1764780098647,1.5533,3097.8,3097.7,3.2078]
[1764780098944,3.2078,3098.3,3097.6,0.006]
[1764780099151,3.36915,3098.3,3097.6,0.006]
[1764780099647,3.2155932,3098.3,3097.6,0.01210788]
[1764780099948,0.0077932,3098.3,3098.2,1.5242]
[1764780100936,1.5610932,3098.3,3098.2,0.7283]
[1764780101342,1.5610932,3098.3,3098.0,0.4579]
[1764780102044,0.7916932,3098.3,3098.2,0.7283]
[1764780102450,1.5610932,3098.3,3098.2,0.7283]
[1764780103248,0.7839,3098.1,3098.0,1.1812]
[1764780103735,0.7839,3098.1,3098.0,1.9398]
[1764780103938,0.7616,3097.8,3097.7,3.9311]
[1764780104144,1.5474,3097.8,3097.7,3.9311]
[1764780104846,3.2155932,3098.3,3097.7,4.6897]
[1764780105151,0.0077932,3098.3,3098.2,1.4819]
[1764780105639,0.7693932,3098.3,3098.2,1.4819]
[1764780106139,0.0077932,3098.3,3098.2,1.4819]
[1764780106340,0.7693932,3098.3,3098.2,1.4819]
[1764780106638,1.5551932,3098.3,3098.2,1.4819]
[1764780106841,1.5551932,3098.3,3098.2,0.7233]
[1764780107040,0.0077932,3098.3,3098.2,1.4819]
[1764780111950,3.2078,3099.1,3099.0,1.9588]
[1764780112244,3.2078,3099.5,3099.4,1.4819]
[1764780112953,3.21152212,3099.5,3099.4,1.4819]
[1764780113150,0.00372212,3099.5,3099.4,1.4819]
[1764780114153,0.00372212,3099.5,3099.4,1.52628636]
[1764780114550,0.00483715,3099.8,3099.7,1.4819]
[1764780115257,0.00483715,3099.8,3099.7,1.52628636]
[1764780115755,0.00719658,3099.8,3099.7,1.52628636]
[1764780122357,3.2078,3100.3,3100.2,1.4819]
[1764780122955,3.9694,3100.3,3100.2,1.51628636]
[1764780123156,4.7552,3100.3,3100.2,0.75768636]
[1764780123356,4.75804934,3100.3,3100.2,0.76079296]
[1764780123751,4.75804934,3100.3,3100.2,1.51939296]
[1764780123752,4.69764934,3100.3,3100.2,1.51939296]
[1764780123958,4.69764934,3100.3,3100.2,0.03749296]
[1764780124462,10.69764934,3100.3,3100.2,0.08187932]
[1764780125968,4.69764934,3100.3,3100.2,0.84347932]
[1764780126365,4.69764934,3100.3,3100.2,0.08187932]
[1764780130869,4.69764934,3100.3,3100.2,1.63887932]
[1764780131673,0.00284934,3100.3,3100.2,1.63887932]
[1764780133967,1.46884934,3100.3,3100.2,0.84347932]
[1764780134668,1.46884934,3100.3,3100.2,0.88786568]
[1764780136164,1.46884934,3100.3,3100.2,0.12626568]
[1764780136367,4.67664934,3100.3,3100.2,0.12626568]
[1764780138470,5.38106866,3100.3,3100.2,0.12626568]
[1764780139375,5.70552663,3100.3,3100.2,0.12626568]
[1764780144178,5.70552663,3100.3,3100.2,0.88786568]
[1764780144480,5.70552663,3100.3,3100.2,0.12626568]
[1764780145286,1.6866,3100.0,3099.9,0.0375]
[1764780145588,2.71547729,3100.0,3099.9,0.0375]
[1764780146385,2.49487729,3100.0,3099.9,0.0399011]
[1764780146780,2.71547729,3100.0,3099.9,0.0399011]
[1764780147278,2.71655654,3100.0,3099.9,0.0399011]
[1764780148284,2.49595654,3100.0,3099.9,1.5969011]
[1764780148682,2.49590072,3100.0,3099.9,1.5969011]
[1764780148892,2.49590072,3100.0,3099.9,0.8015011]
[1764780151584,2.49590072,3100.0,3099.9,0.0399011]
[1764780151986,2.71650072,3100.0,3099.9,0.0399011]
[1764780152575,1.466,3099.2,3099.1,1.56183715]
[1764780152780,2.17041932,3099.2,3099.1,1.56183715]
[1764780153289,2.17041932,3099.2,3099.1,0.00483715]
[1764780153586,2.49576651,3099.2,3099.1,0.00403948]
[1764780153779,0.70441932,3099.2,3099.1,1.47143948]
[1764780153975,1.5763,3099.2,3099.1,0.72573948]
[1764780154186,2.60858828,3099.2,3099.1,0.00403948]
[1764780154686,2.60858828,3099.2,3098.8,0.00483715]
[1764780154687,1.03228828,3099.2,3098.8,0.00483715]
[1764780154878,3.2078,3098.9,3098.1,1.4674]
[1764780155074,1.81258828,3098.8,3098.7,1.4674]
[1764780155282,2.60858828,3098.8,3098.7,1.4674]
[1764780155490,1.5763,3098.7,3098.6,0.7463]
[1764780155800,2.60858828,3098.7,3098.6,0.02752326]
[1764780157189,2.60858828,3098.7,3098.6,0.00292326]
[1764780157383,1.4993,3098.4,3098.3,0.00325632]
[1764780157688,1.4993,3098.4,3098.3,0.76005632]
[1764780157889,3.9561,3098.5,3098.4,1.5033]
[1764780158389,3.2078,3098.5,3098.4,1.50693403]
[1764780158588,4.6751,3098.5,3098.4,0.76043403]
[1764780158790,4.6751,3098.5,3098.4,0.00363403]
[1764780160290,0.43844715,3099.0,3098.4,1.50693403]
[1764780160486,3.2078,3099.7,3099.6,1.5033]
[1764780160893,3.2078,3100.1,3099.6,1.5033]
[1764780161087,3.2078,3100.1,3099.5,0.4632]
[1764780161088,3.2078,3100.1,3100.0,1.9665]
[1764780161281,0.00284934,3100.3,3100.2,1.5033]
[1764780161582,0.00483715,3100.6,3100.5,1.9665]
[1764780162588,0.00816432,3100.6,3100.5,1.9665]
[1764780163189,3.9561,3101.5,3101.4,0.7568]
[1764780163692,3.2078,3101.5,3101.4,1.5033]
[1764780163992,3.9561,3101.9,3101.8,0.7568]
[1764780164287,3.21062101,3101.9,3101.8,1.506961]
[1764780165092,4.67792101,3101.9,3101.8,0.003661]
[1764780169488,0.7483,3101.1,3101.0,1.22]
[1764780169792,0.7483,3100.8,3100.7,3.9646]
[1764780169993,0.7483,3100.8,3100.7,4.7111]
[1764780170187,3.2078,3101.3,3100.7,4.7111]
[1764780170583,3.2078,3101.3,3100.7,4.71987243]
[1764780171494,1.4673,3100.8,3100.7,0.76557243]
[1764780171689,1.4673,3100.8,3100.7,0.00877243]
[1764780172295,42.2673,3100.8,3100.7,0.00877243]
[1764780172498,1.4673,3100.8,3100.7,0.00877243]
[1764780173986,1.4673,3100.8,3100.7,1e-08]
[1764780174191,1.4673,3100.4,3100.3,3.2078]
[1764780174993,1.4673,3100.4,3100.3,3.21138768]
[1764780177402,1.4673,3100.4,3100.3,3.96818768]
[1764780177595,0.7483,3100.4,3100.3,4.71468768]
[1764780178402,4.6751,3100.4,3100.3,0.00358768]
[1764780178802,4.6751,3100.4,3100.3,0.76038768]
[1764780179103,4.6751,3100.4,3100.3,0.00358768]
[1764780180004,4.6751,3100.4,3100.3,0.76038768]
[1764780180301,4.6751,3100.4,3100.3,1.50688768]
[1764780180510,3.2078,3100.4,3100.3,1.50688768]
[1764780181397,3.9561,3100.4,3100.3,1.50688768]
[1764780181797,4.6751,3100.4,3100.3,1.50688768]
[1764780182406,3.9561,3100.4,3100.3,1.50688768]
[1764780182611,4.6751,3100.4,3100.3,1.50688768]
[1764780182805,3.9561,3100.4,3100.3,1.50688768]
[1764780183000,3.2078,3100.8,3100.7,1.5033]
[1764780183411,1.4938,3101.1,3101.0,0.4548]
[1764780183611,1.4938,3101.1,3100.5,0.4632]
[1764780183810,3.2078,3100.7,3100.6,1.4907]
[1764780184505,3.2078,3101.3,3101.2,1.4907]
[1764780185098,0.74082101,3101.9,3101.8,0.7327]
[1764780185305,0.74082101,3101.9,3101.8,1.4907]
[1764780185805,0.00282101,3101.9,3101.8,1.4907]
[1764780192629,2.54946367,3103.5,3103.1,1.4907]
[1764780192630,3.2078,3103.5,3103.1,1.4907]
[1764780192821,0.738,3103.5,3103.4,1.4907]
[1764780193021,41.538,3103.5,3103.4,1.4907]
[1764780193420,0.738,3103.5,3103.4,1.4907]
[1764780193620,0.00483715,3103.8,3103.7,1.4907]
[1764780193816,0.00784089,3103.8,3103.7,1.53503497]
[1764780194215,1.50164089,3103.8,3103.7,0.04433497]
[1764780196020,3.4339,3103.5,3102.0,0.4548]
[1764780196323,0.16116,3101.8,3101.5,0.4548]
[1764780196526,3.2078,3101.6,3101.5,0.4548]
[1764780196922,3.21059332,3101.6,3101.5,0.45831392]
[1764780197327,3.21059332,3101.6,3101.5,0.00351392]
[1764780197533,3.21059332,3101.6,3101.2,0.00325632]
[1764780197534,4.23567402,3101.6,3101.2,0.00325632]
[1764780197723,4.23567402,3101.6,3101.0,0.4548]
[1764780197724,1.97566378,3101.3,3101.0,0.4548]
[1764780197925,3.2078,3101.1,3101.0,0.4548]
[1764780198623,3.2078,3101.1,3101.0,0.45735683]
[1764780200330,3.2078,3101.1,3101.0,1.94805683]
[1764780200630,0.16396332,3101.6,3101.0,1.94805683]
[1764780200631,3.2078,3101.5,3101.4,1.4907]
[1764780201824,3.2078,3101.5,3101.0,0.45735683]
[1764780201825,0.00279332,3101.6,3101.5,1.9455]
[1764780202025,3.21059332,3101.6,3101.5,1.9455]
[1764780205030,0.00279332,3101.6,3101.5,1.9455]
[1764780207832,0.00483715,3101.9,3101.8,1.4907]
[1764780208833,0.00727291,3101.9,3101.8,1.4907]
[1764780209326,0.00727291,3101.9,3101.5,0.4548]
[1764780209636,3.2078,3101.6,3101.5,0.4548]
[1764780210736,3.36897,3101.6,3101.5,0.4548]
[1764780210932,3.2078,3101.6,3101.5,1.9455]
[1764780211331,0.16114,3102.3,3101.5,1.9455]
[1764780211332,3.2078,3102.5,3101.8,1.4907]
[1764780211537,1.02680172,3102.4,3102.0,0.4548]
[1764780211737,1.44150915,3102.3,3102.2,0.7327]
[1764780212239,1.4938,3102.1,3101.5,0.4548]
[1764780212438,1.5028093,3102.1,3101.5,0.45963715]
[1764780212642,4.7106093,3102.1,3101.5,0.45963715]
[1764780214733,1.5188,3101.6,3101.5,0.00483715]
[1764780215438,0.738,3101.6,3101.5,1.65573715]
[1764780216140,3.2168093,3102.1,3101.5,2.13983715]
[1764780216435,0.702344,3102.0,3101.9,1.6509]
[1764780216635,3.2168093,3102.1,3102.0,1.6509]
[1764780217238,3.2168093,3102.1,3102.0,2.135]
[1764780217641,4.0431093,3102.1,3102.0,2.135]
[1764780217835,4.8239093,3102.1,3101.5,0.48893715]
[1764780218236,4.8239093,3102.1,3102.0,0.861]
[1764780219342,1.6071,3101.9,3101.8,0.967]
[1764780219751,4.0431093,3102.1,3102.0,1.6509]
[1764780219943,4.0431093,3102.1,3102.0,2.135]
[1764780220945,0.0090093,3102.1,3102.0,2.135]
[1764780221144,3.2078,3102.9,3102.0,2.135]
[1764780221348,2.31660307,3102.8,3102.2,3.2078]
[1764780221546,1.6071,3102.8,3102.7,0.861]
[1764780221749,2.31653805,3102.8,3102.2,3.2078]
[1764780221944,0.8263,3102.3,3102.2,4.8587]
[1764780222146,0.0032979,3102.3,3102.2,4.8587]
[1764780223749,0.7844,3102.1,3102.0,1.2539]
[1764780223945,0.7876979,3102.3,3102.2,0.7698]
[1764780224339,1.5872,3101.9,3101.8,4.0836]
[1764780224741,0.7844,3101.9,3101.8,4.9269]
[1764780226750,1.5872,3101.9,3101.8,3.3138]
[1764780227251,2.62263989,3101.9,3101.8,0.106]
[1764780229655,1.81983989,3101.9,3101.8,1.7191]
[1764780230247,1.03543989,3101.9,3101.8,1.7191]
[1764780230450,0.7110979,3101.9,3101.8,1.7191]
[1764780230851,0.0032979,3102.3,3101.8,1.7191]
[1764780231057,1.5872,3101.9,3101.8,0.106]
[1764780231247,2.62306598,3101.9,3101.8,0.106]
[1764780231452,2.62306598,3101.9,3101.8,0.8758]
[1764780231655,1.03586598,3101.9,3101.8,1.7191]
[1764780232345,0.0032979,3102.3,3102.2,1.6131]
[1764780232748,1.04039449,3102.3,3102.2,1.6131]
[1764780232962,0.0032979,3102.3,3102.2,1.6131]
[1764780234452,0.16109,3103.3,3102.5,0.5075]
[1764780234652,0.16109,3103.3,3102.5,5.3284]
[1764780234962,1.03678459,3103.2,3102.5,5.3284]
[1764780235152,1.82118459,3103.1,3103.0,0.7698]
[1764780235558,2.62769917,3103.1,3103.0,0.7698]
[1764780236555,2.62769917,3103.1,3103.0,3.2078]
[1764780236759,0.78923715,3103.4,3103.3,1.6131]
[1764780236960,1.50053016,3103.4,3103.3,1.6131]
[1764780237160,2.30333016,3103.4,3103.3,0.7698]
[1764780237861,1.59615175,3103.4,3103.3,0.77291525]
[1764780238059,2.30699515,3103.4,3103.3,0.77291525]
[1764780238360,1.59615175,3103.4,3103.3,0.77291525]
[1764780238563,1.59615175,3103.4,3103.3,0.81725021]
[1764780238859,0.00895175,3103.4,3103.3,1.66055021]
[1764780239253,0.79335175,3103.4,3103.3,1.66055021]
[1764780240756,3.2078,3104.3,3103.3,1.66055021]
[1764780240955,0.70986772,3104.2,3104.1,4.8209]
[1764780241156,40.8,3104.7,3104.1,4.8209]
[1764780241361,1.03251137,3104.6,3104.1,4.8209]
[1764780241568,0.7844,3104.4,3104.3,0.81413496]
[1764780241766,0.78772353,3104.4,3104.3,0.81413496]
[1764780242160,0.78772353,3104.4,3104.3,1.65743496]
[1764780242363,1.59052353,3104.4,3104.3,0.81413496]
[1764780243361,1.59052353,3104.4,3104.3,0.04433496]
[1764780243968,0.00332353,3104.4,3104.3,1.64663496]
[1764780244662,0.73402353,3104.4,3104.3,1.64663496]
[1764780245057,1.58012353,3104.4,3104.3,1.64663496]
[1764780245666,1.58012353,3104.4,3104.3,0.83053496]
[1764780245866,1.58012353,3104.4,3104.3,0.04433496]
[1764780246459,1.58012353,3104.4,3104.3,0.83053496]
[1764780247257,1.58012353,3104.4,3104.3,1.64663496]
[1764780248167,0.00332353,3104.4,3104.3,1.64663496]
[1764780248759,0.00332353,3104.4,3104.3,1.69096992]
[1764780249266,3.2078,3105.2,3105.1,1.6023]
[1764780249466,14.4338,3105.4,3105.3,0.7862]
[1764780249968,14.4338,3105.4,3105.3,0.87486992]
[1764780250175,14.43613619,3105.4,3105.3,0.87486992]
[1764780250666,1.57913619,3105.4,3105.3,0.87486992]
[1764780250858,1.57913619,3105.4,3105.3,0.08866992]
[1764780252965,1.57913619,3105.4,3105.3,0.87486992]
[1764780253169,1.57913619,3105.4,3105.3,1.69096992]
[1764780253853,1.57913619,3105.4,3105.3,0.87486992]
[1764780254255,1.57913619,3105.4,3105.3,1.69096992]
[1764780254662,1.57913619,3105.4,3105.3,0.87486992]
[1764780255372,0.00483715,3105.7,3105.6,1.6023]
[1764780255669,3.2078,3106.9,3105.6,1.6023]
[1764780255866,3.2078,3106.9,3106.2,3.29646992]
[1764780256270,1.57927618,3106.9,3106.8,0.7862]
[1764780256665,0.00247618,3106.9,3106.8,1.6023]
[1764780256863,1.57927618,3106.9,3106.8,0.87486992]
[1764780257061,4.78707618,3106.9,3106.8,0.08866992]
[1764780257669,1.5768,3106.6,3106.5,0.00482928]
[1764780259167,1.5768,3105.9,3105.4,3.2078]
[1764780259772,1.5768,3105.5,3105.4,3.2078]
[1764780259970,1.5768,3105.5,3105.0,3.6476]
[1764780260172,1.5768,3105.5,3105.4,1.6023]
[1764780260173,0.7307,3105.5,3105.4,1.6023]
[1764780260976,0.00482928,3105.6,3105.5,2.0421]
[1764780261179,1.58162928,3105.6,3105.1,0.1574]
[1764780261765,1.5768,3105.2,3105.1,0.1574]
[1764780263777,2.26911422,3105.2,3105.1,0.9436]
[1764780263963,2.26911422,3105.2,3105.1,0.1574]
[1764780265074,2.26911422,3105.2,3105.1,0.9436]
[1764780265777,1.42301422,3105.2,3105.1,1.7597]
[1764780267076,2.26911422,3105.2,3105.1,0.9436]
[1764780267278,0.8461,3104.3,3104.2,3.994]
[1764780267477,0.7307,3104.3,3104.2,3.994]
[1764780267677,5.31380763,3105.0,3104.2,4.8101]
[1764780267875,1.01713156,3104.9,3104.2,4.8101]
[1764780268070,1.01713156,3104.8,3104.2,4.8101]
[1764780268274,0.7307,3104.7,3104.6,4.8101]
[1764780268679,0.00266561,3104.8,3104.7,1.6023]
[1764780268880,0.73336561,3104.8,3104.7,1.6023]
[1764780269380,0.00266561,3104.8,3104.7,1.6023]
[1764780273475,0.7696,3104.7,3104.6,4.7574]
[1764780273774,0.77226561,3104.8,3104.7,1.5496]
[1764780274883,1.52996561,3104.8,3104.7,0.7677]
[1764780275083,1.5273,3104.7,3104.6,3.9755]
[1764780275780,0.00266561,3104.8,3104.7,1.5496]
[1764780281591,0.00482928,3105.6,3105.5,1.9101]
[1764780281785,1.02859161,3105.6,3105.5,1.9101]
[1764780281980,0.70467567,3105.6,3105.5,1.9101]
[1764780282186,0.00482928,3105.6,3105.5,1.9101]
[1764780282687,0.00801859,3105.6,3105.5,1.9101]
[1764780283388,0.7785,3106.1,3106.0,1.9101]
[1764780283589,1.80190417,3106.1,3106.0,1.9101]
[1764780283784,1.80190417,3106.1,3106.0,0.7435]
[1764780283785,2.52370417,3106.1,3106.0,0.7435]
[1764780283989,1.5003,3106.0,3105.5,3.6551]
[1764780284189,1.10230597,3105.9,3105.8,1.4628]
[1764780284590,1.10230597,3105.9,3105.8,0.7435]
[1764780284591,1.82410597,3105.9,3105.8,0.7435]
[1764780284986,1.82410597,3105.9,3105.8,0.78778318]
[1764780285588,1.82410597,3105.9,3105.8,0.04428318]
[1764780285790,1.82410597,3105.9,3105.8,0.78778318]
[1764780285993,1.10230597,3105.9,3105.8,1.50708318]
[1764780286491,1.72430763,3106.6,3106.4,1.4628]
[1764780286682,1.72430763,3107.2,3106.8,1.4628]
[1764780286886,1.61301872,3107.6,3107.5,1.9101]
[1764780287087,4.7081,3108.5,3108.4,0.7435]
[1764780287291,5.40551846,3108.5,3108.0,3.6551]
[1764780287485,0.69741846,3108.4,3108.0,1.91320884]
[1764780287994,2.19772564,3108.3,3108.2,0.04428318]
[1764780289094,0.7785,3108.3,3108.2,0.78778318]
[1764780289298,1.5003,3108.3,3108.2,0.04428318]
[1764780289794,8.19599104,3108.3,3108.2,0.04428318]
[1764780290485,10.16383886,3108.3,3108.2,0.04428318]
[1764780290891,1.2452,3108.0,3107.2,3.2078]
[1764780291085,3.2078,3107.9,3107.2,3.2078]
[1764780291891,1.5003,3107.3,3107.2,0.00882847]
[1764780292098,1.5003,3107.3,3107.2,0.05311165]
[1764780297492,3.62902782,3107.3,3107.2,0.04911246]
[1764780297798,1.5003,3106.7,3106.1,3.2078]
[1764780298701,0.78332928,3106.7,3106.6,4.6706]
[1764780300000,0.00482928,3106.7,3106.6,4.6706]
[1764780300391,3.9863,3107.6,3107.5,0.7435]
[1764780300586,4.7081,3107.6,3107.0,3.6551]
[1764780300790,0.7218,3106.7,3106.6,3.9513]
[1764780300995,0.7785,3107.3,3107.2,1.4628]
[1764780301190,56.20764782,3107.8,3107.2,4.6706]
[1764780301399,44.01262928,3107.8,3107.2,4.6706]
[1764780301795,0.78332928,3107.8,3107.7,1.4628]
[1764780301995,1.50512928,3107.8,3107.7,0.7435]
[1764780302198,1.5003,3107.6,3107.2,3.2078]
[1764780302602,0.7785,3107.3,3107.2,4.6706]
[1764780302901,0.7785,3107.3,3107.2,3.9513]
[1764780303102,0.7785,3107.3,3107.2,4.71488318]
[1764780303502,3.21262928,3107.8,3107.2,4.71488318]
[1764780303798,1.5054,3107.3,3107.2,0.04428318]
[1764780304005,1.96784782,3107.3,3106.2,3.2078]
[1764780304303,0.4532,3107.0,3106.2,3.2078]
[1764780304494,3.661,3107.0,3106.2,3.2078]
[1764780304696,1.5054,3106.2,3106.1,0.00861674]
[1764780304996,0.755,3105.5,3105.0,3.6803]
[1764780305204,0.755,3105.5,3105.4,1.5306]
[1764780305396,1.96784782,3105.8,3105.4,1.5306]
[1764780305897,1.5054,3105.5,3105.4,0.0033829]
[1764780306101,0.755,3105.5,3105.4,0.7601829]
[1764780306301,1.5054,3105.5,3105.4,0.0033829]
[1764780306599,1.8788,3105.5,3105.4,0.0033829]
[1764780306802,1.5054,3105.4,3105.3,0.00482928]
[1764780307005,2.20648963,3105.4,3105.3,0.00482928]
[1764780307403,43.16746963,3105.4,3104.5,3.6803]
[1764780307700,3.2078,3105.2,3104.5,3.68317331]
[1764780308601,1.5054,3104.6,3104.5,3.21550259]
[1764780308802,3.36879,3105.2,3104.5,3.97230259]
[1764780309002,3.36879,3105.2,3104.5,4.44480259]
[1764780309407,3.2078,3105.2,3105.1,0.7568]
[1764780309713,4.7132,3105.2,3104.5,3.68800259]
[1764780310711,1.5054,3104.6,3104.5,3.21550259]
[1764780310912,3.36879,3105.2,3104.5,4.74610259]
[1764780311110,3.36879,3105.2,3104.5,5.21860259]
[1764780311314,1.5054,3104.6,3104.5,3.21550259]
[1764780311706,1.5054,3104.6,3104.5,3.97230259]
[1764780312009,3.9628,3105.2,3105.1,0.7568]
[1764780312215,3.9628,3105.2,3104.5,3.68800259]
[1764780313015,0.755,3105.2,3104.9,3.2078]
[1764780313309,1.5054,3105.0,3104.5,3.68800259]
[1764780313909,1.5054,3105.0,3104.9,0.7568]
[1764780314616,1.5054,3105.0,3104.5,3.68800259]
[1764780315012,1.5054,3105.0,3104.9,0.7568]
[1764780315213,40.8,3105.4,3105.3,0.7568]
[1764780315515,0.755,3105.1,3105.0,0.7568]
[1764780316011,0.755,3105.1,3105.0,1.5306]
[1764780316217,0.755,3105.1,3105.0,0.7568]
[1764780316411,1.5054,3105.1,3104.5,3.68800259]
[1764780319019,1.5054,3104.6,3104.5,3.97230259]
[1764780319413,1.5054,3104.6,3104.5,3.21550259]
[1764780320409,1.5054,3104.6,3104.5,3.25983693]
[1764780321015,1.5054,3104.6,3104.5,0.05203693]
[1764780321316,1.5054,3104.3,3104.2,0.0799]
[1764780322315,1.5054,3104.3,3104.2,0.08241627]
[1764780323411,3.2078,3104.8,3104.2,1.61301627]
[1764780323721,12.847,3104.7,3104.2,1.61301627]
[1764780323916,12.847,3104.7,3104.0,0.4725]
[1764780323917,0.16105,3104.1,3103.7,4.7384]
[1764780324213,0.755,3104.4,3104.3,1.5306]
[1764780324418,8.97,3104.7,3104.3,1.5306]
[1764780324619,5.62884782,3105.0,3104.3,1.5306]
[1764780324916,3.96762928,3105.0,3104.9,0.7568]
[1764780325126,4.71802928,3105.0,3104.9,0.7568]
[1764780325415,0.00482928,3105.0,3104.9,1.5306]
[1764780326221,3.2078,3105.5,3104.9,4.7384]
[1764780326518,3.2078,3105.5,3105.0,0.4725]
[1764780327623,0.755,3105.1,3105.0,0.7568]
[1764780327822,5.54904782,3105.5,3104.5,5.2109]
[1764780328125,0.70027188,3105.4,3104.5,5.2109]
[1764780329726,0.70027188,3105.4,3105.3,0.7568]
[1764780329923,0.00482928,3105.6,3105.3,1.5306]
[1764780330523,0.00482928,3105.6,3105.5,5.2109]
[1764780330925,0.00482928,3105.6,3105.5,5.25523434]
[1764780331319,0.00482928,3105.6,3104.5,0.4725]
[1764780331320,0.16099,3105.1,3104.5,0.4725]
[1764780331522,8.67419273,3105.6,3104.5,0.4725]
[1764780331523,3.2078,3104.7,3104.6,1.5306]
[1764780331727,3.2078,3105.5,3105.4,0.7568]
[1764780331927,3.2078,3105.5,3105.4,1.5306]
[1764780332322,3.2078,3105.5,3105.0,0.4725]
[1764780332323,0.00482928,3105.6,3105.5,2.0031]
[1764780333622,1.02936588,3105.6,3105.5,1.2688]
[1764780334024,1.02937148,3105.6,3105.5,2.0311]
[1764780335434,1.02937148,3105.6,3105.5,1.2688]
[1764780335630,1.02937148,3105.6,3105.5,0.4725]
[1764780335830,1.02937148,3105.6,3105.5,1.2688]
[1764780336030,3.1581893,3105.6,3105.5,0.4725]
[1764780336235,54.6281893,3105.6,3105.5,0.4725]
[1764780336428,43.9581893,3105.6,3105.5,0.4725]
[1764780336626,56.8441893,3105.6,3105.5,1.2688]
[1764780336831,56.8441893,3105.6,3105.5,0.4725]
[1764780337133,43.9581893,3105.6,3105.5,0.4725]
[1764780337434,56.8431893,3105.6,3105.0,0.4725]
[1764780337634,3.2078,3105.3,3105.2,1.6021]
[1764780337834,4.2323422,3105.3,3105.2,1.6021]
[1764780338834,1.0245422,3105.3,3105.2,1.6021]
[1764780339033,0.70362261,3105.3,3105.2,1.6021]
[1764780339234,0.00482928,3105.6,3105.5,2.0831]
[1764780339437,1.03222797,3105.6,3105.5,2.0831]
[1764780340035,1.03222797,3105.6,3105.5,0.4876]
[1764780340241,1.03222797,3105.6,3105.5,1.2773]
[1764780340742,1.03222797,3105.6,3105.5,2.0831]
[1764780341247,1.03222797,3105.6,3105.5,2.12743434]
[1764780343048,1.03222797,3105.6,3105.5,0.53193434]
[1764780344048,1.03222797,3105.6,3105.5,1.32163434]
[1764780344451,1.03222797,3105.6,3105.5,0.53193434]
[1764780345551,1.03222797,3105.6,3105.5,1.32163434]
[1764780346946,1.03222797,3105.6,3105.5,2.12743434]
[1764780347147,13.90722797,3105.6,3105.5,2.12743434]
[1764780347351,13.90722797,3105.6,3105.5,1.32163434]
[1764780347852,13.90722797,3105.6,3105.5,2.12743434]
[1764780348557,13.90722797,3105.6,3105.5,1.32163434]
[1764780349459,13.90722797,3105.6,3105.5,2.12743434]
[1764780349757,13.90722797,3105.6,3105.5,1.32163434]
[1764780350845,1.03222797,3105.6,3105.5,1.32163434]
[1764780351055,13.90222797,3105.6,3105.5,2.12743434]
[1764780351253,13.90222797,3105.6,3105.5,1.32163434]
[1764780351455,13.90222797,3105.6,3105.5,1.35832197]
[1764780351654,13.90222797,3105.6,3105.5,0.56862197]
[1764780351846,13.90222797,3105.6,3105.0,0.4725]
[1764780352047,0.161,3104.9,3104.5,0.4725]
[1764780352252,3.2078,3104.6,3104.5,0.4725]
[1764780352453,4.23519869,3104.6,3104.5,1.2622]
[1764780352746,4.23519869,3104.6,3104.5,0.4725]
[1764780352951,4.23519869,3104.6,3104.5,2.068]
[1764780353347,4.23519869,3104.6,3104.5,1.2622]
[1764780353550,4.23519869,3104.6,3104.5,2.068]
[1764780356857,4.23519869,3104.6,3104.5,0.4725]
[1764780357061,6.41988897,3104.6,3104.0,3.6803]
[1764780357261,1.02739869,3104.5,3104.0,3.6803]
[1764780357466,1.02739869,3104.4,3104.2,0.0414]
[1764780357662,1.02739869,3104.4,3103.6,3.2078]
[1764780357866,3.2078,3104.0,3103.6,3.2078]
[1764780358165,1.02739869,3103.9,3103.8,0.7897]
[1764780358363,12.862,3103.9,3103.8,1.5955]
[1764780358661,12.86501973,3103.9,3103.8,1.59885782]
[1764780358866,0.00301973,3103.9,3103.8,1.59885782]
[1764780359061,0.00301973,3103.9,3103.8,7.59885782]
[1764780359368,12.863,3104.6,3104.5,2.0831]
[1764780359567,17.09785974,3104.6,3104.5,2.0831]
[1764780359754,4.23485974,3104.6,3104.5,2.0831]
[1764780360065,17.09685974,3104.6,3104.5,2.0831]
[1764780360265,17.0993563,3104.6,3104.5,2.0831]
[1764780360454,0.16103,3104.5,3104.0,0.4876]
[1764780360661,3.2078,3104.1,3103.8,0.00335782]
[1764780360866,13.88905974,3104.0,3103.8,0.00335782]
[1764780361165,1.02705974,3103.9,3103.8,0.00335782]
[1764780361364,1.02705974,3103.9,3103.8,1.59885782]
[1764780361563,3.2078,3104.1,3104.0,2.0831]
[1764780361764,0.70571467,3104.1,3104.0,2.0831]
[1764780361966,3.2078,3104.5,3104.4,0.7897]
[1764780362264,4.2341293,3104.5,3104.4,1.5955]
[1764780362464,3.2078,3104.5,3104.4,1.5955]
[1764780362861,3.91323602,3104.5,3104.4,1.5955]